bitfinex/quotes_BTCUSD_20251213
["timestamp","ask_amount","ask_price","bid_price","bid_amount"]
[1765615225810,0.02211765,90514.0,90513.0,0.01104813]
[1765615227238,0.02211765,90514.0,90513.0,0.01204813]
[1765615228760,0.02211765,90514.0,90513.0,0.001]
[1765615229813,0.06315765,90514.0,90513.0,0.001]
[1765615231050,0.03871765,90514.0,90513.0,0.001]
[1765615231280,0.06315765,90514.0,90513.0,0.001]
[1765615231517,0.01131,90520.0,90516.0,0.01104777]
[1765615231718,0.03318284,90519.0,90517.0,0.2209514]
[1765615231918,0.02848716,90521.0,90517.0,0.2209514]
[1765615232140,0.01131,90520.0,90517.0,0.23199904]
[1765615232356,0.01116265,90523.0,90520.0,0.01104728]
[1765615232719,0.01744,90522.0,90520.0,0.01104728]
[1765615233547,0.01744,90522.0,90520.0,0.01204728]
[1765615233872,0.01744,90522.0,90520.0,0.01104728]
[1765615235330,0.01744,90522.0,90521.0,0.2209432]
[1765615235525,0.00011574,90523.0,90521.0,0.2209432]
[1765615235859,0.02247253,90523.0,90520.0,0.23299112]
[1765615236058,0.01116265,90523.0,90520.0,0.001]
[1765615236241,0.22094076,90522.0,90520.0,0.001]
[1765615236447,0.01104728,90520.0,90517.0,0.01104764]
[1765615236680,0.02211765,90518.0,90515.0,0.01104789]
[1765615237106,0.02211765,90518.0,90516.0,0.22095541]
[1765615237629,0.02211765,90518.0,90515.0,0.01104789]
[1765615239751,0.02211765,90518.0,90515.0,0.01204789]
[1765615240131,0.02211765,90518.0,90515.0,0.23300387]
[1765615242405,0.02211765,90518.0,90515.0,0.01204789]
[1765615243358,0.02211765,90518.0,90515.0,0.23300342]
[1765615244344,0.02211765,90518.0,90515.0,0.01204789]
[1765615244554,0.02211765,90518.0,90515.0,0.233004]
[1765615246093,0.03316517,90518.0,90515.0,0.01204789]
[1765615247031,0.02211765,90518.0,90515.0,0.23300404]
[1765615247554,0.03316517,90518.0,90515.0,0.01204789]
[1765615248578,0.03316517,90518.0,90515.0,0.001]
[1765615248780,0.2541172,90518.0,90515.0,0.001]
[1765615249184,0.2785572,90518.0,90515.0,0.001]
[1765615250498,0.22095494,90517.0,90515.0,0.001]
[1765615250698,0.2785572,90518.0,90515.0,0.001]
[1765615251503,0.2785572,90518.0,90514.0,0.01104801]
[1765615251748,0.2541172,90518.0,90515.0,0.002]
[1765615252108,0.2541172,90518.0,90515.0,0.001]
[1765615252349,0.2541172,90518.0,90515.0,0.002]
[1765615252553,0.22095478,90517.0,90515.0,0.002]
[1765615252739,0.24539478,90517.0,90515.0,0.002]
[1765615253123,0.22095478,90517.0,90515.0,0.001]
[1765615254238,0.22095478,90517.0,90515.0,0.002]
[1765615254444,0.22095478,90517.0,90515.0,0.001]
[1765615254646,0.03316517,90518.0,90515.0,0.001]
[1765615254844,0.03316517,90518.0,90515.0,0.002]
[1765615255617,0.03316517,90518.0,90515.0,0.001]
[1765615255968,0.03316517,90518.0,90515.0,0.002]
[1765615256172,0.03316517,90518.0,90515.0,0.001]
[1765615259751,0.02211765,90518.0,90515.0,0.01204789]
[1765615260221,0.02211765,90518.0,90516.0,0.22095358]
[1765615260647,0.02211765,90518.0,90515.0,0.23300332]
[1765615261248,0.02211765,90518.0,90515.0,0.23200332]
[1765615261977,0.02211765,90518.0,90516.0,0.001]
[1765615262386,0.02211765,90518.0,90515.0,0.23200332]
[1765615262592,0.02211765,90518.0,90515.0,0.23300332]
[1765615262744,0.03316517,90518.0,90515.0,0.01204789]
[1765615262947,0.03316517,90518.0,90515.0,0.01104789]
[1765615263264,0.03316517,90518.0,90516.0,0.001]
[1765615264050,0.02211765,90518.0,90516.0,0.001]
[1765615264454,0.22095975,90515.0,90513.0,0.00161287]
[1765615264648,0.01837,90514.0,90513.0,0.00161287]
[1765615264901,0.04217,90514.0,90513.0,0.00161287]
[1765615265104,0.01837,90514.0,90513.0,0.00161287]
[1765615265895,0.01837,90514.0,90513.0,0.00261287]
[1765615266093,0.00304,90514.0,90513.0,0.00261287]
[1765615269447,0.04217,90514.0,90513.0,0.00261287]
[1765615269924,0.01837,90514.0,90513.0,0.00261287]
[1765615270330,0.00304,90514.0,90513.0,0.00261287]
[1765615271856,0.23200318,90516.0,90513.0,0.00261287]
[1765615272075,0.23200061,90517.0,90514.0,0.01104801]
[1765615272238,0.01104764,90517.0,90514.0,0.01104801]
[1765615274457,0.01104764,90517.0,90514.0,0.01304801]
[1765615275354,0.24785785,90515.0,90514.0,0.002]
[1765615275826,0.0269,90515.0,90514.0,0.002]
[1765615276058,0.01157,90515.0,90514.0,0.002]
[1765615276260,0.0507,90515.0,90514.0,0.002]
[1765615276672,0.0507,90515.0,90514.0,0.001]
[1765615277103,0.0507,90515.0,90514.0,0.002]
[1765615277734,0.01104911,90505.0,90502.0,0.01104947]
[1765615277939,0.02211765,90503.0,90502.0,0.23203866]
[1765615278348,0.02211765,90503.0,90502.0,0.01104947]
[1765615278769,0.02211765,90503.0,90502.0,0.23303906]
[1765615279194,0.02211765,90503.0,90502.0,0.23203906]
[1765615279445,0.02211765,90503.0,90502.0,0.01104947]
[1765615279645,0.02211765,90503.0,90502.0,0.01204947]
[1765615279837,0.02211765,90503.0,90502.0,0.23303906]
[1765615280124,0.02211765,90503.0,90502.0,0.01304947]
[1765615287572,0.00351,90507.0,90505.0,0.22098226]
[1765615287772,0.23201021,90514.0,90509.0,0.01104862]
[1765615288197,0.02287,90512.0,90509.0,0.01104862]
[1765615288403,0.01104862,90509.0,90502.0,0.01366234]
[1765615288603,0.02211765,90503.0,90502.0,0.01366234]
[1765615288810,0.02211765,90503.0,90502.0,0.01266234]
[1765615289748,0.02211765,90503.0,90502.0,0.01366234]
[1765615290714,0.02211765,90503.0,90502.0,0.01466234]
[1765615295294,0.01104764,90517.0,90510.0,0.0110485]
[1765615295431,0.01744,90515.0,90513.0,0.22096062]
[1765615295858,0.01744,90515.0,90513.0,0.22096056]
[1765615296680,0.01844,90515.0,90513.0,0.22096056]
[1765615297421,0.01744,90515.0,90513.0,0.22096056]
[1765615297622,0.01844,90515.0,90513.0,0.22096056]
[1765615298122,0.01744,90515.0,90513.0,0.22096056]
[1765615298741,0.01744,90515.0,90513.0,0.22196056]
[1765615300078,0.01744,90515.0,90513.0,0.23396056]
[1765615300273,0.01744,90515.0,90513.0,0.25702056]
[1765615300438,0.03316688,90518.0,90516.0,0.22095315]
[1765615301933,0.02211765,90518.0,90516.0,0.22095315]
[1765615305080,0.02211765,90518.0,90515.0,0.01104789]
[1765615305643,0.02211765,90518.0,90515.0,0.2320036]
[1765615305842,0.02211765,90518.0,90503.0,0.22098654]
[1765615305843,0.01104911,90505.0,90502.0,0.00161287]
[1765615306045,0.01104911,90505.0,90500.0,0.00404491]
[1765615306046,0.22099203,90501.0,90500.0,0.00404491]
[1765615306318,0.23623203,90501.0,90500.0,0.00404491]
[1765615306521,0.25910203,90501.0,90500.0,0.00404491]
[1765615365493,0.26352766,90501.0,90500.0,0.00404491]
[1765615378010,0.26452766,90501.0,90500.0,0.00404491]
[1765615378226,0.26352766,90501.0,90500.0,0.00404491]
[1765615378401,0.26452766,90501.0,90500.0,0.00404491]
[1765615379259,0.26552766,90501.0,90500.0,0.00404491]
[1765615379634,0.26452766,90501.0,90500.0,0.00404491]
[1765615380043,0.26652766,90501.0,90500.0,0.00404491]
[1765615380480,0.51402766,90501.0,90500.0,0.00404491]
[1765615383718,0.51437311,90501.0,90500.0,0.00404491]
[1765615388257,0.50937311,90501.0,90500.0,0.00404491]
[1765615396812,0.5593915,90501.0,90500.0,0.00404491]
[1765615397009,0.56974281,90501.0,90500.0,0.00404491]
[1765615397223,0.86044281,90501.0,90500.0,0.00404491]
[1765615397430,0.88431742,90501.0,90500.0,0.00404491]
[1765615397632,0.88231742,90501.0,90500.0,0.00404491]
[1765615398054,0.88531742,90501.0,90500.0,0.00404491]
[1765615398485,0.88431742,90501.0,90500.0,0.00404491]
[1765615398624,0.96731377,90501.0,90500.0,0.00404491]
[1765615399038,0.96931377,90501.0,90500.0,0.00404491]
[1765615399665,0.96931283,90501.0,90500.0,0.00404491]
[1765615405098,0.56171774,90498.0,90490.0,0.0004]
[1765615405298,0.56173484,90491.0,90490.0,0.0004]
[1765615405608,0.59546521,90491.0,90490.0,0.0004]
[1765615405783,0.59546521,90491.0,90480.0,0.0004]
[1765615405784,0.27105927,90481.0,90480.0,0.0004]
[1765615405994,0.55843927,90481.0,90480.0,0.0004]
[1765615406204,0.58145927,90481.0,90480.0,0.0004]
[1765615406414,0.59623655,90481.0,90480.0,0.0004]
[1765615406623,0.59623655,90481.0,90480.0,0.00051602]
[1765615406852,0.70674417,90481.0,90480.0,0.00051602]
[1765615407065,0.73061878,90481.0,90480.0,0.00051602]
[1765615407301,0.73261459,90481.0,90480.0,0.00051602]
[1765615407521,0.73561459,90481.0,90480.0,0.00051602]
[1765615407733,0.62510697,90481.0,90480.0,0.00051602]
[1765615407931,0.60123236,90481.0,90480.0,0.00051602]
[1765615408367,0.59088649,90481.0,90480.0,0.00051602]
[1765615411462,0.34338649,90481.0,90480.0,0.00102164]
[1765615422060,0.59088649,90481.0,90480.0,0.00102164]
[1765615424242,0.89192197,90481.0,90480.0,0.00102164]
[1765615424443,0.89192197,90481.0,90470.0,0.0004]
[1765615424444,0.5617837,90471.0,90470.0,0.0004]
[1765615424694,0.60271934,90471.0,90470.0,0.0004]
[1765615424927,0.66584993,90471.0,90470.0,0.0004]
[1765615425189,0.66584993,90471.0,90460.0,0.0004]
[1765615425190,0.27110814,90461.0,90460.0,0.0004]
[1765615425401,0.31192814,90461.0,90460.0,0.0004]
[1765615425660,0.33494814,90461.0,90460.0,0.0004]
[1765615426354,0.34137668,90461.0,90460.0,0.0004]
[1765615427379,0.34237668,90461.0,90460.0,0.0004]
[1765615430931,0.58987668,90461.0,90460.0,0.0004]
[1765615431337,0.58987668,90461.0,90460.0,0.00099504]
[1765615432680,0.61368318,90461.0,90460.0,0.00099504]
[1765615436062,0.56366479,90461.0,90460.0,0.00099504]
[1765615436264,0.53985829,90461.0,90460.0,0.00099504]
[1765615436468,0.52241829,90461.0,90460.0,0.00099504]
[1765615437107,0.51683829,90461.0,90460.0,0.00099504]
[1765615437324,0.51483829,90461.0,90460.0,0.00099504]
[1765615437545,0.51383829,90461.0,90460.0,0.00099504]
[1765615437753,0.53635829,90461.0,90460.0,0.00099504]
[1765615439526,0.51891829,90461.0,90460.0,0.00099504]
[1765615439745,0.53635829,90461.0,90460.0,0.00099504]
[1765615440603,0.14211765,90462.0,90460.0,0.04184791]
[1765615440823,0.12,90462.0,90461.0,0.01785]
[1765615441091,0.12,90462.0,90461.0,0.04335287]
[1765615441353,0.12,90462.0,90461.0,0.26444262]
[1765615442943,0.121,90462.0,90461.0,0.26444262]
[1765615443376,0.121,90462.0,90461.0,0.26644262]
[1765615443595,0.00011564,90471.0,90470.0,0.22106775]
[1765615443803,0.00011564,90471.0,90470.0,0.01696287]
[1765615444008,0.00011564,90471.0,90470.0,0.04085287]
[1765615444786,0.00011564,90471.0,90470.0,0.04185287]
[1765615445833,0.00011564,90471.0,90470.0,0.04285287]
[1765615448482,0.00011564,90471.0,90470.0,0.05929287]
[1765615448920,0.00011564,90471.0,90470.0,0.04315036]
[1765615449427,0.00011564,90471.0,90470.0,0.04515036]
[1765615454687,0.00011564,90471.0,90470.0,0.02126036]
[1765615455515,0.00011564,90471.0,90470.0,0.04515036]
[1765615458728,0.00011564,90471.0,90470.0,0.06725713]
[1765615458932,0.00011564,90471.0,90470.0,0.04515036]
[1765615459136,0.00011564,90471.0,90470.0,0.06725713]
[1765615459342,0.00011564,90471.0,90470.0,0.04515036]
[1765615459984,0.00011564,90471.0,90470.0,0.06725713]
[1765615463731,0.00011564,90471.0,90470.0,0.04515036]
[1765615466303,0.00011564,90471.0,90470.0,0.06725713]
[1765615470907,0.00011564,90471.0,90470.0,0.04515036]
[1765615478288,0.00011564,90471.0,90470.0,0.00591036]
[1765615479541,0.00011564,90471.0,90470.0,0.00391036]
[1765615479740,0.00011564,90471.0,90470.0,0.00291036]
[1765615479882,0.00011564,90471.0,90470.0,0.00491036]
[1765615480284,0.00011564,90471.0,90470.0,0.00191036]
[1765615480526,0.00011564,90471.0,90470.0,0.00591036]
[1765615481238,0.00011564,90471.0,90470.0,0.01723036]
[1765615482683,0.00011564,90471.0,90470.0,0.04221036]
[1765615484607,0.00011564,90471.0,90470.0,0.01723036]
[1765615485584,0.00011564,90471.0,90470.0,0.00591036]
[1765615486077,0.02223329,90471.0,90470.0,0.00591036]
[1765615487291,0.06785329,90471.0,90470.0,0.00591036]
[1765615487480,0.02806329,90471.0,90470.0,0.00591036]
[1765615487680,0.07126329,90471.0,90470.0,0.00591036]
[1765615487900,0.06543329,90471.0,90470.0,0.00591036]
[1765615491684,0.02223329,90471.0,90470.0,0.00591036]
[1765615496987,0.02223329,90471.0,90470.0,0.04544036]
[1765615497188,0.00011564,90471.0,90470.0,0.04544036]
[1765615497436,0.00011564,90471.0,90470.0,0.06754713]
[1765615511618,0.00011564,90471.0,90470.0,0.08966478]
[1765615513622,0.00011564,90471.0,90470.0,0.38036478]
[1765615513943,0.00011564,90471.0,90470.0,0.35825801]
[1765615515933,0.31604095,90471.0,90470.0,0.02802801]
[1765615516142,0.31604095,90471.0,90470.0,0.02641514]
[1765615516342,0.31604095,90471.0,90470.0,0.00229749]
[1765615517209,0.31604095,90471.0,90470.0,0.00529749]
[1765615517421,0.31604095,90471.0,90470.0,0.00329749]
[1765615517601,0.31604095,90471.0,90470.0,0.00029749]
[1765615517816,0.31604095,90471.0,90470.0,0.00329749]
[1765615518040,0.31604095,90471.0,90470.0,0.00029749]
[1765615518242,0.31604095,90471.0,90470.0,0.00129749]
[1765615518882,0.31604095,90471.0,90470.0,0.00229749]
[1765615520894,0.29183095,90471.0,90470.0,0.00229749]
[1765615521784,0.27617095,90471.0,90470.0,0.00229749]
[1765615523743,0.31620095,90471.0,90470.0,0.00229749]
[1765615533766,0.27300095,90471.0,90470.0,0.00229749]
[1765615533961,0.31620095,90471.0,90470.0,0.00229749]
[1765615540701,0.33364095,90471.0,90470.0,0.00229749]
[1765615560440,0.23862095,90471.0,90470.0,0.00229749]
[1765615563115,0.26695095,90471.0,90470.0,0.00229749]
[1765615563343,0.29128095,90471.0,90470.0,0.00229749]
[1765615563548,0.33448095,90471.0,90470.0,0.00229749]
[1765615575340,0.31704095,90471.0,90470.0,0.00229749]
[1765615575615,0.33448095,90471.0,90470.0,0.00229749]
[1765615585705,0.33448095,90471.0,90470.0,0.00129749]
[1765615586184,0.33448095,90471.0,90470.0,0.00029749]
[1765615587084,0.33548095,90471.0,90470.0,0.00029749]
[1765615587491,0.33648095,90471.0,90470.0,0.00029749]
[1765615592375,0.27584095,90471.0,90470.0,0.00029749]
[1765615592578,0.33648095,90471.0,90470.0,0.00029749]
[1765615592808,0.31215095,90471.0,90470.0,0.00029749]
[1765615593679,0.31115095,90471.0,90470.0,0.00029749]
[1765615593869,0.31015095,90471.0,90470.0,0.00029749]
[1765615596326,0.29386095,90471.0,90470.0,0.00029749]
[1765615597329,0.22118095,90471.0,90470.0,0.00029749]
[1765615597526,0.23862095,90471.0,90470.0,0.00029749]
[1765615597933,0.00011564,90471.0,90470.0,0.00029749]
[1765615598115,0.00011564,90471.0,90470.0,0.04029749]
[1765615598536,0.00011564,90471.0,90470.0,0.26136524]
[1765615598759,0.00011564,90471.0,90470.0,0.04029749]
[1765615598981,0.02223329,90471.0,90470.0,0.04191036]
[1765615599192,0.00011564,90471.0,90470.0,0.04191036]
[1765615599403,0.02223329,90471.0,90470.0,0.04191036]
[1765615600899,0.02223329,90471.0,90470.0,0.04391036]
[1765615601471,0.00011564,90471.0,90470.0,0.04391036]
[1765615601909,0.00011564,90471.0,90470.0,0.04591036]
[1765615608754,0.00011564,90471.0,90470.0,0.06801713]
[1765615609165,0.00011564,90471.0,90470.0,0.10121095]
[1765615609936,0.00011564,90471.0,90470.0,0.09921095]
[1765615610487,0.00011564,90471.0,90470.0,0.10121095]
[1765615611258,0.00011564,90471.0,90470.0,0.09921095]
[1765615611420,0.00011564,90471.0,90470.0,0.10121095]
[1765615615625,0.03678284,90479.0,90478.0,0.51174821]
[1765615615822,0.03678284,90479.0,90478.0,0.54076108]
[1765615615996,0.03678284,90479.0,90478.0,0.56327108]
[1765615616459,0.03678284,90479.0,90478.0,0.5964613]
[1765615617490,0.03678284,90479.0,90478.0,0.5974613]
[1765615617895,0.03678284,90479.0,90478.0,0.5984613]
[1765615618374,0.03678284,90479.0,90478.0,0.5964613]
[1765615618582,0.03678284,90479.0,90478.0,0.5994613]
[1765615618959,0.03678284,90479.0,90478.0,0.6024613]
[1765615629002,0.03678284,90479.0,90478.0,0.6456613]
[1765615629220,0.01744,90498.0,90497.0,0.2210018]
[1765615629404,0.01744,90498.0,90497.0,0.00337]
[1765615629975,0.01744,90498.0,90497.0,0.02588]
[1765615632017,0.01744,90498.0,90497.0,0.04128]
[1765615636144,0.01744,90498.0,90497.0,0.04289287]
[1765615640145,0.00102943,90499.0,90498.0,0.22099935]
[1765615640361,0.00114528,90499.0,90498.0,0.25890935]
[1765615642236,0.00114528,90499.0,90498.0,0.26052222]
[1765615648874,0.00114528,90499.0,90498.0,0.26152222]
[1765615649297,0.00114528,90499.0,90498.0,0.26252222]
[1765615651195,0.00114528,90499.0,90498.0,0.28463987]
[1765615651985,0.00114528,90499.0,90498.0,0.57533987]
[1765615663295,0.00114528,90499.0,90498.0,0.61853987]
[1765615665522,0.00114528,90499.0,90498.0,0.57533987]
[1765615666456,0.00114528,90499.0,90498.0,0.61853987]
[1765615666865,0.00114528,90499.0,90498.0,0.57533987]
[1765615668158,0.00114528,90499.0,90498.0,0.61853987]
[1765615669430,0.00114528,90499.0,90498.0,0.57533987]
[1765615670264,0.00114528,90499.0,90498.0,0.61853987]
[1765615682736,0.03752974,90517.0,90516.0,0.22095541]
[1765615682855,0.03752974,90517.0,90516.0,0.23686541]
[1765615683062,0.03752974,90517.0,90516.0,0.26313828]
[1765615683289,0.03806483,90517.0,90516.0,0.26313828]
[1765615683736,0.04006483,90517.0,90516.0,0.26313828]
[1765615684135,0.03806483,90517.0,90516.0,0.26313828]
[1765615685004,0.04006483,90517.0,90516.0,0.29631423]
[1765615685427,0.03806483,90517.0,90516.0,0.29631423]
[1765615685839,0.03806483,90517.0,90516.0,0.29731423]
[1765615687606,0.03806483,90517.0,90516.0,0.58801423]
[1765615688039,0.03806483,90517.0,90516.0,0.63121423]
[1765615688878,0.00053509,90517.0,90516.0,0.63121423]
[1765615689493,0.00053509,90517.0,90516.0,0.58801423]
[1765615690125,0.00053509,90517.0,90516.0,0.63121423]
[1765615690531,0.00053509,90517.0,90516.0,0.63221423]
[1765615690873,0.00053509,90517.0,90516.0,0.58801423]
[1765615691371,0.00053509,90517.0,90516.0,0.59001423]
[1765615691695,0.00053509,90517.0,90516.0,0.63321423]
[1765615692055,0.00053509,90517.0,90516.0,0.59001423]
[1765615692260,0.00053509,90517.0,90516.0,0.63321423]
[1765615696952,0.00053509,90517.0,90516.0,0.59001423]
[1765615701702,0.00053509,90517.0,90516.0,0.63321423]
[1765615701918,0.00053509,90517.0,90516.0,0.59001423]
[1765615702943,0.00053509,90517.0,90516.0,0.63321423]
[1765615703186,0.00053509,90517.0,90516.0,0.59001423]
[1765615703611,0.00053509,90517.0,90516.0,0.63321423]
[1765615704594,0.00053509,90517.0,90516.0,0.59001423]
[1765615705459,0.01744,90542.0,90541.0,0.2208944]
[1765615705658,0.00011585,90542.0,90541.0,0.2208944]
[1765615705884,0.00011585,90542.0,90541.0,0.00603]
[1765615706314,0.00011585,90542.0,90541.0,0.02987]
[1765615706828,0.00411585,90542.0,90541.0,0.02987]
[1765615707037,0.00411585,90542.0,90541.0,0.04558]
[1765615711193,0.00485876,90542.0,90541.0,0.04558]
[1765615712052,0.00485876,90542.0,90540.0,0.01142]
[1765615712293,0.23605264,90542.0,90539.0,0.01104496]
[1765615712516,0.01104484,90540.0,90536.0,0.01104423]
[1765615712690,0.0432,90537.0,90536.0,0.01104423]
[1765615713053,0.05826,90537.0,90536.0,0.01104423]
[1765615713256,0.08221,90537.0,90536.0,0.01104423]
[1765615713857,0.08221,90537.0,90524.0,0.30212]
[1765615713858,0.01104703,90522.0,90516.0,0.01104777]
[1765615714065,0.0432,90519.0,90518.0,0.30174752]
[1765615714476,0.01247,90519.0,90518.0,0.30174752]
[1765615714871,0.0116,90521.0,90519.0,0.22094808]
[1765615715482,0.0116,90521.0,90519.0,0.25412703]
[1765615716062,0.02211765,90524.0,90521.0,0.23198879]
[1765615716304,0.02211765,90524.0,90523.0,0.01142]
[1765615716855,0.00777615,90525.0,90523.0,0.25619832]
[1765615717061,0.00777615,90525.0,90523.0,0.23235832]
[1765615717469,0.03316383,90529.0,90525.0,0.01104667]
[1765615718275,0.02211765,90529.0,90526.0,0.23197755]
[1765615718689,0.00029721,90527.0,90526.0,0.23197755]
[1765615719175,0.00029721,90527.0,90526.0,0.28294755]
[1765615722754,0.00029721,90527.0,90526.0,0.24339755]
[1765615722932,0.00029721,90527.0,90526.0,0.01104655]
[1765615723959,0.00029721,90527.0,90526.0,0.02246655]
[1765615724174,0.00029721,90527.0,90526.0,0.08410965]
[1765615724385,0.00029721,90527.0,90526.0,0.06201655]
[1765615724596,0.00029721,90527.0,90526.0,0.08410965]
[1765615724799,0.00029721,90527.0,90526.0,0.08572252]
[1765615725849,0.00029721,90527.0,90526.0,0.06362942]
[1765615727088,0.00029721,90527.0,90526.0,0.08572252]
[1765615728411,0.00029721,90527.0,90526.0,0.06362942]
[1765615732149,0.00029721,90527.0,90526.0,0.08572252]
[1765615733127,0.00029721,90527.0,90526.0,0.10229225]
[1765615735109,0.00029721,90527.0,90526.0,0.14549225]
[1765615735718,0.00029721,90527.0,90526.0,0.10229225]
[1765615735929,0.00029721,90527.0,90526.0,0.14549225]
[1765615740912,0.00029721,90527.0,90526.0,0.43619225]
[1765615741090,0.00029721,90527.0,90526.0,0.41409915]
[1765615742576,0.00029721,90527.0,90526.0,0.47347576]
[1765615742798,0.00029721,90527.0,90526.0,0.37089915]
[1765615743008,0.00029721,90527.0,90526.0,0.41609915]
[1765615744038,0.00029721,90527.0,90526.0,0.41809915]
[1765615744649,0.00029721,90527.0,90526.0,1.41809915]
[1765615747572,0.00029721,90527.0,90526.0,0.41809915]
[1765615747797,0.00029721,90527.0,90526.0,1.41809915]
[1765615748624,0.00029721,90527.0,90526.0,0.41809915]
[1765615748827,0.00029721,90527.0,90526.0,1.41809915]
[1765615750960,0.00029721,90527.0,90526.0,1.46811754]
[1765615751168,4.229e-05,90527.0,90526.0,1.46811754]
[1765615752817,4.229e-05,90527.0,90526.0,1.46611754]
[1765615753040,4.229e-05,90527.0,90526.0,1.46411754]
[1765615753210,4.229e-05,90527.0,90526.0,1.47011754]
[1765615756196,4.229e-05,90527.0,90526.0,1.42691754]
[1765615756399,4.229e-05,90527.0,90526.0,1.47011754]
[1765615757282,4.229e-05,90527.0,90526.0,1.54914253]
[1765615758230,4.229e-05,90527.0,90526.0,1.54914142]
[1765615759211,4.229e-05,90527.0,90526.0,1.47011754]
[1765615759860,4.229e-05,90527.0,90526.0,0.47011754]
[1765615760064,4.229e-05,90527.0,90526.0,1.47011754]
[1765615761085,2.29e-06,90527.0,90526.0,1.47011754]
[1765615769290,2.29e-06,90527.0,90526.0,1.43056754]
[1765615770056,0.01164,90532.0,90531.0,1.38391839]
[1765615770259,0.01164,90532.0,90531.0,1.40293126]
[1765615770467,0.03541,90532.0,90531.0,1.40293126]
[1765615770692,0.03541,90532.0,90531.0,1.42670126]
[1765615770890,0.01164,90532.0,90531.0,1.42670126]
[1765615771251,0.02377,90537.0,90536.0,1.3339]
[1765615771614,0.01152,90540.0,90539.0,1.55479928]
[1765615771913,0.01152,90540.0,90539.0,1.55641215]
[1765615772118,0.01335,90540.0,90539.0,1.55641215]
[1765615772543,0.01335,90540.0,90539.0,1.56805215]
[1765615773609,0.00875,90548.0,90541.0,0.2208944]
[1765615773817,0.00875,90548.0,90541.0,1.57380727]
[1765615774177,0.00875,90548.0,90541.0,1.58544727]
[1765615774387,0.00875,90548.0,90541.0,1.63546566]
[1765615774976,0.00875,90548.0,90541.0,1.63646566]
[1765615775713,0.00875,90548.0,90541.0,1.63546566]
[1765615775958,0.00875,90548.0,90541.0,1.7165584]
[1765615776944,0.0002377,90543.0,90541.0,1.7185584]
[1765615777147,0.0002377,90543.0,90541.0,1.63946566]
[1765615777359,0.0002377,90543.0,90541.0,1.7185584]
[1765615780149,0.05,90571.0,90569.0,0.22082611]
[1765615780351,0.05240601,90570.0,90569.0,0.22082611]
[1765615780691,0.05422601,90570.0,90569.0,0.22082611]
[1765615780870,0.05502798,90570.0,90569.0,0.25398464]
[1765615781276,0.05602798,90570.0,90569.0,0.25398464]
[1765615781864,0.05502798,90570.0,90569.0,0.25398464]
[1765615787266,0.05138798,90570.0,90569.0,0.25398464]
[1765615788332,0.05138798,90570.0,90569.0,0.25559751]
[1765615792222,0.05138798,90570.0,90569.0,0.29879751]
[1765615794815,0.05138798,90570.0,90569.0,1.54629751]
[1765615795230,0.05138798,90570.0,90569.0,1.58949751]
[1765615795853,0.05138798,90570.0,90569.0,1.06539751]
[1765615796079,0.05138798,90570.0,90569.0,0.73809751]
[1765615796289,0.05138798,90570.0,90569.0,0.72849751]
[1765615796901,0.05138798,90570.0,90569.0,1.54829751]
[1765615797100,0.05138798,90570.0,90569.0,0.72719751]
[1765615797508,0.05138798,90570.0,90569.0,0.71699751]
[1765615797922,0.05138798,90570.0,90569.0,0.67359751]
[1765615798677,0.05138798,90570.0,90569.0,0.54829751]
[1765615798882,0.05138798,90570.0,90569.0,0.69699751]
[1765615799087,0.05320798,90570.0,90569.0,0.54829751]
[1765615800795,0.05138798,90570.0,90569.0,0.54829751]
[1765615801655,0.05138798,90570.0,90569.0,0.59888751]
[1765615801858,0.05138798,90570.0,90569.0,1.64208751]
[1765615802076,0.05138798,90570.0,90569.0,1.70143278]
[1765615802543,0.05138798,90570.0,90569.0,1.64108751]
[1765615802958,0.05138798,90570.0,90569.0,1.64308751]
[1765615803459,0.05138798,90570.0,90569.0,1.64108751]
[1765615803600,0.05138798,90570.0,90569.0,1.64208751]
[1765615803801,0.05138798,90570.0,90569.0,1.64308751]
[1765615804207,0.05138798,90570.0,90569.0,1.64208751]
[1765615804590,0.05138798,90570.0,90569.0,1.55029751]
[1765615804971,0.05138798,90570.0,90569.0,0.54868464]
[1765615804972,0.05502798,90570.0,90569.0,0.54868464]
[1765615805553,0.05502798,90570.0,90569.0,0.54668464]
[1765615805886,0.05502798,90570.0,90569.0,0.54768464]
[1765615806435,0.05502798,90570.0,90569.0,0.54668464]
[1765615807049,0.05502798,90570.0,90569.0,0.54468464]
[1765615807678,0.05502798,90570.0,90569.0,0.54568464]
[1765615808134,0.05502798,90570.0,90569.0,0.54468464]
[1765615812210,0.05138798,90570.0,90569.0,0.54468464]
[1765615812621,0.05502798,90570.0,90569.0,0.54468464]
[1765615813296,0.05138798,90570.0,90569.0,0.58788464]
[1765615813967,0.05138798,90570.0,90569.0,0.58949751]
[1765615814517,0.05138798,90570.0,90569.0,0.54629751]
[1765615814739,0.05502798,90570.0,90569.0,0.54629751]
[1765615815371,0.05502798,90570.0,90569.0,0.60554124]
[1765615815946,0.05138798,90570.0,90569.0,1.56146751]
[1765615816144,0.05138798,90570.0,90569.0,1.60297751]
[1765615816546,0.05138798,90570.0,90569.0,1.64617751]
[1765615818035,0.05138798,90570.0,90569.0,1.64717751]
[1765615818691,0.05138798,90570.0,90569.0,1.64817751]
[1765615818896,0.03344179,90570.0,90569.0,1.65017751]
[1765615825743,0.03344179,90570.0,90569.0,1.77932293]
[1765615825877,0.03344179,90570.0,90569.0,1.7001959]
[1765615827307,0.05,90579.0,90578.0,0.60472255]
[1765615827521,0.05011576,90579.0,90578.0,1.63326542]
[1765615827720,0.05011576,90579.0,90578.0,1.65702542]
[1765615827939,0.05011576,90579.0,90578.0,0.69017156]
[1765615828158,0.05011576,90579.0,90578.0,1.69017156]
[1765615828810,0.03217298,90579.0,90578.0,1.69317156]
[1765615829443,0.03217298,90579.0,90578.0,1.69517156]
[1765615829885,0.03217298,90579.0,90578.0,1.69317156]
[1765615830317,0.03217298,90579.0,90578.0,1.69617156]
[1765615832187,0.03217298,90579.0,90578.0,0.69617156]
[1765615832354,0.03217298,90579.0,90578.0,1.69617156]
[1765615833059,0.03244024,90579.0,90578.0,1.77503036]
[1765615833495,0.03244024,90579.0,90578.0,1.73183036]
[1765615833636,0.03244024,90579.0,90578.0,1.19028156]
[1765615833838,0.03244024,90579.0,90578.0,0.33811711]
[1765615834532,0.03244024,90579.0,90578.0,0.27596317]
[1765615834981,0.03608024,90579.0,90578.0,0.27796317]
[1765615835162,0.03608024,90579.0,90578.0,0.27596317]
[1765615836181,0.03608024,90579.0,90578.0,0.27296317]
[1765615836386,0.03608024,90579.0,90578.0,0.2569503]
[1765615836964,0.03244024,90579.0,90578.0,0.25656317]
[1765615837163,0.03244024,90579.0,90578.0,0.58752317]
[1765615837378,0.03244024,90579.0,90578.0,0.63072317]
[1765615837575,0.03244024,90579.0,90578.0,0.58752317]
[1765615838609,0.03244024,90579.0,90578.0,0.63072317]
[1765615838831,0.03244024,90579.0,90578.0,0.58752317]
[1765615839033,0.03244024,90579.0,90578.0,0.63072317]